fUSD/lending_fUSD_20240524
["ID","MTS","AMOUNT","RATE_DAILY","PERIOD"]
[327899933,1716589846928,-62699.56443491,0.00035398,2]
[327899934,1716589846939,-4270.15185033,0.00035398,2]
[327899935,1716589846952,-2055.95637963,0.00035398,2]
[327899936,1716589846965,-415.7195867,0.00035398,2]
[327899941,1716590035601,524.28180258,9e-05,2]
[327899942,1716590068210,10469.64371101,6.94e-05,2]
[327899952,1716590788013,-189.15,0.00033386,120]
[327899953,1716590788040,-200.0,0.00034156,60]
[327899954,1716590788063,-325.0,0.00034559,120]
[327899955,1716590788086,-2000.0,0.00034986,30]
[327899956,1716590788108,-600.0,0.00035,36]
[327899957,1716590788130,-325.0,0.00035014,120]
[327899958,1716590788154,-200.0,0.00035115,60]
[327899959,1716590788180,-157.052505,0.00035148,44]
[327899960,1716590788205,-2677.95946211,0.00035398,30]
[327899961,1716590788238,-325.0,0.00035468,120]
[327899962,1716590788261,-3500.0,0.00035475,120]
[327899963,1716590788286,-1263.30642158,0.00035498,120]
[327899964,1716590788316,-1000.0,0.000355,30]
[327899965,1716590788341,-1000.0,0.000355,30]
[327899966,1716590788362,-1000.0,0.000355,30]
[327899967,1716590788385,-1000.0,0.000355,30]
[327899968,1716590788408,-1000.0,0.000355,30]
[327899969,1716590788430,-1000.0,0.000355,30]
[327899970,1716590788453,-1000.0,0.000355,30]
[327899971,1716590788476,-1000.0,0.000355,30]
[327899972,1716590788499,-1000.0,0.000355,30]
[327899973,1716590788522,-1000.0,0.000355,30]
[327899974,1716590788545,-1000.0,0.000355,30]
[327899975,1716590788566,-1000.0,0.000355,30]
[327899976,1716590788588,-1000.0,0.000355,30]
[327899977,1716590788611,-1000.0,0.000355,30]
[327899978,1716590788635,-1000.0,0.000355,30]
[327899979,1716590788658,-1000.0,0.000355,30]
[327899980,1716590788680,-1000.0,0.000355,30]
[327899981,1716590788702,-1000.0,0.000355,30]
[327899982,1716590788724,-1000.0,0.000355,30]
[327899983,1716590788747,-1000.0,0.000355,30]
[327899984,1716590788770,-1000.0,0.000355,30]
[327899985,1716590788794,-1000.0,0.000355,30]
[327899986,1716590788816,-1000.0,0.000355,30]
[327899987,1716590788839,-1000.0,0.000355,30]
[327899988,1716590788861,-1000.0,0.000355,30]
[327899989,1716590788885,-1000.0,0.000355,30]
[327899990,1716590788908,-1000.0,0.000355,30]
[327899991,1716590788931,-1000.0,0.000355,30]
[327899992,1716590788954,-1000.0,0.000355,30]
[327899993,1716590788976,-1000.0,0.000355,30]
[327899994,1716590788998,-786.89976853,0.000355,30]
[327899995,1716590789021,-153.32957268,0.000355,30]
[327899996,1716590789063,-745.44,0.00035555,30]
[327899997,1716590789087,-745.44,0.00035555,30]
[327899998,1716590789111,-745.44,0.00035828,30]
[327899999,1716590789134,-745.44,0.00035828,30]
[327900000,1716590789157,-325.0,0.00035923,120]
[327900001,1716590789181,-1800.0,0.00036,37]
[327900002,1716590789204,-500.0,0.00036,30]
[327900003,1716590789228,-745.44,0.00036101,30]
[327900004,1716590789251,-745.44,0.00036101,30]
[327900005,1716590789275,-450.0,0.0003626,30]
[327900006,1716590789300,-745.44,0.00036374,30]
[327900007,1716590789323,-745.44,0.00036374,30]
[327900008,1716590789346,-325.0,0.00036378,120]
[327900009,1716590789369,-745.44,0.00036648,30]
[327900010,1716590789394,-745.44,0.00036648,30]
[327900011,1716590789417,-150.0,0.00036728,120]
[327900012,1716590789440,-150.0,0.00036811,120]
[327900013,1716590789462,-325.0,0.00036832,120]
[327900014,1716590789485,-745.44,0.00036921,30]
[327900015,1716590789508,-745.44,0.00036921,30]
[327900016,1716590789530,-1650.0,0.00037,100]
[327900017,1716590789554,-1800.0,0.00037,38]
[327900018,1716590789575,-500.0,0.00037,40]
[327900019,1716590789596,-2662.14950037,0.00037035,40]
[327900020,1716590789618,-3312.15520139,0.00037035,40]
[327900021,1716590789639,-2842.28781748,0.00037035,40]
[327900022,1716590789660,-3397.19991871,0.00037035,40]
[327900023,1716590789683,-5175.38316883,0.00037035,40]
[327900024,1716590789706,-5000.0,0.00037035,40]
[327900025,1716590789731,-5000.0,0.00037035,40]
[327900026,1716590789753,-5000.0,0.00037035,40]
[327900027,1716590789776,-5000.0,0.00037035,40]
[327900028,1716590789935,-5000.0,0.00037035,40]
[327900029,1716590789959,-5000.0,0.00037035,40]
[327900030,1716590789983,-5000.0,0.00037035,40]
[327900031,1716590790005,-5000.0,0.00037035,40]
[327900032,1716590790030,-5000.0,0.00037035,40]
[327900033,1716590790053,-5000.0,0.00037035,40]
[327900034,1716590790076,-5000.0,0.00037035,40]
[327900035,1716590790101,-5000.0,0.00037035,40]
[327900036,1716590790124,-5000.0,0.00037035,40]
[327900037,1716590790145,-5000.0,0.00037035,40]
[327900038,1716590790168,-5000.0,0.00037035,40]
[327900039,1716590790191,-5000.0,0.00037035,40]
[327900040,1716590790213,-5000.0,0.00037035,40]
[327900041,1716590790237,-5000.0,0.00037035,40]
[327900042,1716590790260,-5000.0,0.00037035,40]
[327900043,1716590790282,-5000.0,0.00037035,40]
[327900044,1716590790308,-5000.0,0.00037035,40]
[327900045,1716590790332,-150.0,0.00037131,120]
[327900046,1716590790356,-150.0,0.00037142,120]
[327900047,1716590790380,-745.44,0.00037194,30]
[327900048,1716590790406,-745.44,0.00037194,30]
[327900049,1716590790428,-325.0,0.00037287,120]
[327900050,1716590790452,-450.0,0.000375,30]
[327900051,1716590790478,-151.0,0.000375,30]
[327900052,1716590790500,-325.0,0.00037742,120]
[327900053,1716590790524,-1800.0,0.00038,39]
[327900054,1716590790547,-1500.0,0.00038,30]
[327900055,1716590790569,-1500.0,0.00038,30]
[327900056,1716590790592,-1993.0,0.00038,30]
[327900057,1716590790615,-606.45820308,0.00038,120]
[327900058,1716590790638,-325.0,0.00038197,120]
[327900059,1716590790659,-2000.0,0.00038356,120]
[327900060,1716590790683,-2000.0,0.00038356,120]
[327900061,1716590790704,-2000.0,0.00038356,120]
[327900062,1716590790728,-2000.0,0.00038356,120]
[327900063,1716590790750,-2000.0,0.00038356,120]
[327900064,1716590790773,-2000.0,0.00038356,120]
[327900065,1716590790796,-2000.0,0.00038356,120]
[327900066,1716590790818,-2000.0,0.00038356,120]
[327900067,1716590790841,-2000.0,0.00038356,120]
[327900068,1716590790863,-2000.0,0.00038356,120]
[327900069,1716590790885,-2000.0,0.00038356,120]
[327900070,1716590790907,-2000.0,0.00038356,120]
[327900071,1716590790929,-2000.0,0.00038356,120]
[327900072,1716590790953,-176.7877079,0.00038356,120]
[327900073,1716590790975,-325.0,0.00038651,120]
[327900074,1716590790999,-450.0,0.0003874,30]
[327900075,1716590791022,-1019.7,0.000388,60]
[327900076,1716590791044,-892.67670654,0.000389,30]
[327900077,1716590791067,-1000.0,0.00038987,60]
[327900078,1716590791091,-1550.0,0.00039,120]
[327900079,1716590791114,-1800.0,0.00039,40]
[327900080,1716590791136,-1800.0,0.00039,60]
[327900081,1716590791158,-325.0,0.00039106,120]
[327900082,1716590791180,-563.80683076,0.000394,30]
[327900083,1716590791206,-21357.80305079,0.000395,50]
[327900084,1716590791229,-325.0,0.00039561,120]
[327900085,1716590791252,-2194.16707764,0.000399,120]
[327900086,1716590791275,-655.02883298,0.0003998,30]
[327900087,1716590791300,-450.66503732,0.0003998,30]
[327900088,1716590791324,-407.61722314,0.00039986,120]
[327900089,1716590791351,-50000.0,0.0004,30]
[327900090,1716590791374,-2887.85327264,0.0004,30]
[327900091,1716590791396,-1470.04462875,0.0004,30]
[327900092,1716590791418,-2329.30067755,0.0004,120]
[327900093,1716590791441,-171.92965095,0.0004,30]
[327900094,1716590791463,-534.50493346,0.0004,30]
[327900095,1716590791486,-2004.88391728,0.0004,120]
[327900096,1716590791508,-1367.80752646,0.0004,120]
[327900097,1716590791531,-3005.66233131,0.0004,120]
[327900098,1716590791553,-2443.83412647,0.0004,30]
[327900099,1716590791575,-2443.0611848,0.0004,120]
[327900100,1716590791597,-1892.71779481,0.0004,120]
[327900101,1716590791619,-403.95729843,0.0004,30]
[327900102,1716590791641,-200.3841449,0.0004,90]
[327900103,1716590791663,-3323.52769966,0.0004,120]
[327900104,1716590791685,-2000.0,0.0004,60]
[327900105,1716590791706,-351.0,0.0004,30]
[327900106,1716590791731,-3471.81920069,0.0004,120]
[327900107,1716590791752,-2155.8492055,0.0004,120]
[327900108,1716590791775,-1000.0,0.0004,120]
[327900109,1716590791797,-500.0,0.0004,90]
[327900110,1716590791819,-372965.65006929,0.0004,40]
[327900111,1716590791841,-2000.0,0.0004,30]
[327900112,1716590791863,-1000.96636158,0.0004,30]
[327900113,1716590791886,-1700.0,0.0004,120]
[327900114,1716590791907,-217.72067247,0.0004,30]
[327900115,1716590791928,-300.0,0.0004,30]
[327900116,1716590791951,-300.0,0.0004,30]
[327900117,1716590791973,-300.0,0.0004,30]
[327900118,1716590791997,-1039.79061396,0.0004,34]
[327900119,1716590792019,-151.77944134,0.0004,30]
[327900120,1716590792043,-312.0,0.0004,30]
[327900121,1716590792067,-42246.74747697,0.0004,35]
[327900122,1716590792090,-557.16777498,0.0004,30]
[327900123,1716590792115,-500.0,0.0004,60]
[327900124,1716590792139,-502.12403687,0.0004,120]
[327900125,1716590792160,-117399.00077232,0.0004,120]
[327900126,1716590792182,-1800.0,0.0004,41]
[327900127,1716590792204,-164.53393834,0.0004,60]
[327900128,1716590792228,-199.0,0.0004,91]
[327900129,1716590792251,-72000.0,0.0004,70]
[327900130,1716590792274,-5355.74,0.0004,120]
[327900131,1716590792405,-816.27,0.0004,120]
[327900132,1716590792429,-393.51709816,0.0004001,30]
[327900133,1716590792454,-325.0,0.00040015,120]
[327900134,1716590792477,-325.0,0.0004047,120]
[327900135,1716590792499,-500.0,0.0004052,90]
[327900136,1716590792522,-603.0,0.000408,30]
[327900137,1716590792545,-200.0,0.0004085,120]
[327900138,1716590792570,-877.0,0.000409,30]
[327900139,1716590792592,-270.71248232,0.00040914,120]
[327900140,1716590792614,-325.0,0.00040925,120]
[327900141,1716590792635,-1640.71528982,0.00040993,120]
[327900142,1716590792662,-50000.0,0.00041,31]
[327900143,1716590792684,-940.25135556,0.00041,60]
[327900144,1716590792707,-1350.0,0.00041,120]
[327900145,1716590792731,-1008.93236967,0.00041,120]
[327900146,1716590792753,-11586.31143934,0.00041,120]
[327900147,1716590792775,-250.0,0.00041,30]
[327900148,1716590792797,-717.51,0.00041,120]
[327900149,1716590792819,-580.73882318,0.00041,120]
[327900150,1716590792841,-1800.0,0.00041,42]
[327900151,1716590792863,-71000.0,0.00041,80]
[327900152,1716590792884,-151.0,0.00041,38]
[327900153,1716590792908,-510.0,0.00041095,120]
[327900154,1716590792930,-1000.0,0.00041095,30]
[327900155,1716590792953,-1000.0,0.00041095,30]
[327900156,1716590792976,-1000.0,0.00041095,30]
[327900157,1716590793004,-1000.0,0.00041095,30]
[327900158,1716590793027,-1000.0,0.00041095,30]
[327900159,1716590793050,-1000.0,0.00041095,30]
[327900160,1716590793072,-1000.0,0.00041095,30]
[327900161,1716590793094,-1000.0,0.00041095,30]
[327900162,1716590793116,-1000.0,0.00041095,30]
[327900163,1716590793139,-1000.0,0.00041095,30]
[327900164,1716590793162,-1000.0,0.00041095,30]
[327900165,1716590793184,-1000.0,0.00041095,30]
[327900166,1716590793207,-1000.0,0.00041095,30]
[327900167,1716590793232,-561.34929121,0.00041095,30]
[327900168,1716590793254,-4000.0,0.00041096,30]
[327900169,1716590793277,-1000.0,0.00041096,30]
[327900170,1716590793303,-1000.0,0.00041148,30]
[327900171,1716590793325,-1000.0,0.00041199,30]
[327900172,1716590793351,-1000.0,0.00041251,30]
[327900173,1716590793375,-603.0,0.000413,31]
[327900174,1716590793396,-1000.0,0.00041303,30]
[327900175,1716590793418,-1000.0,0.00041354,30]
[327900176,1716590793441,-510.0,0.00041369,120]
[327900177,1716590793463,-325.0,0.0004138,120]
[327900178,1716590793487,-1000.0,0.00041406,30]
[327900179,1716590793508,-1000.0,0.00041458,30]
[327900180,1716590793530,-1000.0,0.00041509,30]
[327900181,1716590793551,-1000.0,0.00041561,30]
[327900182,1716590793573,-1000.0,0.00041613,30]
[327900183,1716590793595,-644.66582671,0.00041643,120]
[327900184,1716590793617,-1000.0,0.00041665,30]
[327900185,1716590793640,-1000.0,0.00041716,30]
[327900186,1716590793662,-1000.0,0.00041768,30]
[327900187,1716590793685,-603.0,0.000418,31]
[327900188,1716590793708,-1000.0,0.0004182,30]
[327900189,1716590793732,-325.0,0.00041834,120]
[327900190,1716590793755,-156.121976,0.00041852,30]
[327900191,1716590793777,-1000.0,0.00041871,30]
[327900192,1716590793800,-1843.35805192,0.000419,111]
[327900193,1716590793823,-1000.0,0.00041923,30]
[327900194,1716590793845,-1000.0,0.00041975,30]
[327900195,1716590793867,-2519.5419219,0.0004199,120]
[327900196,1716590793894,-50000.0,0.00042,32]
[327900197,1716590793917,-8462.01088661,0.00042,30]
[327900198,1716590793938,-764.6275789,0.00042,120]
[327900199,1716590793960,-3207.55262083,0.00042,120]
[327900200,1716590793984,-3179.30276034,0.00042,120]
[327900201,1716590794007,-1000.0,0.00042,120]
[327900202,1716590794030,-500.0,0.00042,120]
[327900203,1716590794054,-2000.0,0.00042,30]
[327900204,1716590794076,-20717.91778121,0.00042,30]
[327900205,1716590794099,-250.0,0.00042,30]
[327900206,1716590794121,-1000.0,0.00042,120]
[327900207,1716590794142,-8358.91643334,0.00042,90]
[327900208,1716590794166,-964.06084901,0.00042,120]
[327900209,1716590794188,-2950.0,0.00042,120]
[327900210,1716590794212,-164.2,0.00042,120]
[327900211,1716590794251,-1800.0,0.00042,43]
[327900212,1716590794275,-72000.0,0.00042,90]
[327900213,1716590794298,-2280.89404676,0.00042,60]
[327900214,1716590794324,-1000.0,0.00042026,30]
[327900215,1716590794347,-1000.0,0.00042078,30]
[327900216,1716590794372,-1000.0,0.0004213,30]
[327900217,1716590794397,-1000.0,0.00042181,30]
[327900218,1716590794421,-1000.0,0.00042233,30]
[327900219,1716590794446,-1000.0,0.00042285,30]
[327900220,1716590794471,-527.75502,0.00042288,30]
[327900221,1716590794498,-325.0,0.00042289,120]
[327900222,1716590794521,-603.0,0.000423,32]
[327900223,1716590794547,-1000.0,0.00042337,30]
[327900224,1716590794571,-1000.0,0.00042388,30]
[327900225,1716590794594,-980.39,0.000424,120]
[327900226,1716590794618,-2126.68,0.000424,120]
[327900227,1716590794643,-327.86,0.000424,120]
[327900228,1716590794667,-1000.0,0.0004244,30]
[327900229,1716590794689,-527.75502,0.00042488,30]
[327900230,1716590794712,-1000.0,0.00042492,30]
[327900231,1716590794735,-493.84004854,0.000425,33]
[327900232,1716590794758,-1000.0,0.00042543,30]
[327900233,1716590794780,-1000.0,0.00042595,30]
[327900234,1716590794947,-1000.0,0.00042647,30]
[327900235,1716590794991,-570.79968283,0.0004267,30]
[327900236,1716590795013,-527.75502,0.00042688,30]
[327900237,1716590795036,-1000.0,0.00042698,30]
[327900238,1716590795058,-2446.0,0.000427,92]
[327900239,1716590795080,-325.0,0.00042744,120]
[327900240,1716590795102,-1000.0,0.0004275,30]
[327900241,1716590795124,-1913.49897821,0.000428,90]
[327900242,1716590795146,-603.0,0.000428,32]
[327900243,1716590795168,-1000.0,0.00042802,30]
[327900244,1716590795189,-1000.0,0.00042853,30]
[327900245,1716590795210,-527.75502,0.00042888,30]
[327900246,1716590795233,-999.99999999,0.000429,30]
[327900247,1716590795255,-28404.5767073,0.000429,30]
[327900248,1716590795277,-1000.0,0.00042905,30]
[327900249,1716590795302,-1000.0,0.00042957,30]
[327900250,1716590795324,-407.0,0.00042986,120]
[327900251,1716590795352,-50000.0,0.00043,33]
[327900252,1716590795374,-9762.67917236,0.00043,30]
[327900253,1716590795397,-1150.0,0.00043,120]
[327900254,1716590795419,-300.1219089,0.00043,120]
[327900255,1716590795440,-2000.0,0.00043,30]
[327900256,1716590795466,-472.23678054,0.00043,30]
[327900257,1716590795490,-721.85529852,0.00043,120]
[327900258,1716590795512,-530958.63681117,0.00043,30]
[327900259,1716590795537,-250.0,0.00043,30]
[327900260,1716590795559,-1000.0,0.00043,120]
[327900261,1716590795582,-2022.0,0.00043,60]
[327900262,1716590795604,-3800.44680422,0.00043,60]
[327900263,1716590795626,-1608.51,0.00043,120]
[327900264,1716590795649,-428.94263913,0.00043,30]
[327900265,1716590795673,-50193.48746293,0.00043,90]
[327900266,1716590795695,-135838.65903417,0.00043,30]
[327900267,1716590795716,-472133.95574773,0.00043,30]
[327900268,1716590795738,-95000.0,0.00043,120]
[327900269,1716590795760,-1000.0,0.00043009,30]
[327900270,1716590795783,-1000.0,0.0004306,30]
[327900271,1716590795805,-1000.0,0.00043112,30]
[327900272,1716590795829,-1071.89023258,0.00043123,60]
[327900273,1716590795852,-1000.0,0.00043164,30]
[327900274,1716590795874,-328.0,0.00043198,120]
[327900275,1716590795896,-1000.0,0.00043205,60]
[327900276,1716590795919,-1000.0,0.00043215,30]
[327900277,1716590795942,-1000.0,0.00043267,30]
[327900278,1716590795965,-527.75502,0.00043288,30]
[327900279,1716590795989,-1160.18920145,0.000433,60]
[327900280,1716590796014,-603.0,0.000433,33]
[327900281,1716590796043,-1000.0,0.00043301,60]
[327900282,1716590796070,-1000.0,0.00043319,30]
[327900283,1716590796095,-1000.0,0.0004337,30]
[327900284,1716590796119,-1000.0,0.00043422,30]
[327900285,1716590796143,-1018.30413866,0.0004345,60]
[327900286,1716590796169,-1000.0,0.00043474,30]
[327900287,1716590796194,-1000.0,0.00043479,60]
[327900288,1716590796219,-527.75502,0.00043488,30]
[327900289,1716590796244,-1000.0,0.00043525,30]
[327900290,1716590796268,-1000.0,0.00043575,60]
[327900291,1716590796291,-1000.0,0.00043577,30]
[327900292,1716590796318,-1000.0,0.000436,120]
[327900293,1716590796353,-1000.0,0.000436,120]
[327900294,1716590796379,-1000.0,0.000436,120]
[327900295,1716590796406,-1000.0,0.000436,120]
[327900296,1716590796431,-1000.0,0.000436,120]
[327900297,1716590796455,-3191.53292461,0.00043602,120]
[327900298,1716590796479,-1000.0,0.00043629,30]
[327900299,1716590796502,-1000.0,0.00043657,60]
[327900300,1716590796526,-1000.0,0.00043681,30]
[327900301,1716590796550,-527.75502,0.00043688,30]
[327900302,1716590796575,-1000.0,0.00043732,30]
[327900303,1716590796599,-1000.0,0.00043753,60]
[327900304,1716590796626,-1000.0,0.00043784,30]
[327900305,1716590796651,-1000.0,0.000438,120]
[327900306,1716590796674,-1000.0,0.000438,120]
[327900307,1716590796699,-1000.0,0.000438,120]
[327900308,1716590796726,-1000.0,0.000438,120]
[327900309,1716590796750,-1000.0,0.000438,120]
[327900310,1716590796772,-603.0,0.000438,33]
[327900311,1716590796794,-1000.0,0.00043835,60]
[327900312,1716590796818,-1000.0,0.00043835,60]
[327900313,1716590796841,-1000.0,0.00043835,60]
[327900314,1716590796863,-1000.0,0.00043835,60]
[327900315,1716590796886,-1000.0,0.00043835,60]
[327900316,1716590796909,-1000.0,0.00043835,60]
[327900317,1716590796931,-1000.0,0.00043835,60]
[327900318,1716590796955,-1000.0,0.00043835,60]
[327900319,1716590796979,-1000.0,0.00043835,60]
[327900320,1716590797002,-1000.0,0.00043835,60]
[327900321,1716590797029,-1000.0,0.00043835,60]
[327900322,1716590797053,-1000.0,0.00043835,60]
[327900323,1716590797075,-1000.0,0.00043835,60]
[327900324,1716590797098,-1000.0,0.00043835,60]
[327900325,1716590797121,-1000.0,0.00043835,60]
[327900326,1716590797143,-1000.0,0.00043835,60]
[327900327,1716590797168,-500.0,0.00043835,120]
[327900328,1716590797193,-500.0,0.00043835,120]
[327900329,1716590797216,-500.0,0.00043835,120]
[327900330,1716590797241,-500.0,0.00043835,120]
[327900331,1716590797265,-500.0,0.00043835,120]
[327900332,1716590797288,-500.0,0.00043835,120]
[327900333,1716590797315,-500.0,0.00043835,120]
[327900334,1716590797340,-500.0,0.00043835,120]
[327900335,1716590797364,-500.0,0.00043835,120]
[327900336,1716590797387,-500.0,0.00043835,120]
[327900337,1716590797411,-500.0,0.00043835,120]
[327900338,1716590797607,-500.0,0.00043835,120]
[327900339,1716590797632,-500.0,0.00043835,120]
[327900340,1716590797655,-500.0,0.00043835,120]
[327900341,1716590797680,-500.0,0.00043835,120]
[327900342,1716590797704,-500.0,0.00043835,120]
[327900343,1716590797728,-500.0,0.00043835,120]
[327900344,1716590797750,-500.0,0.00043835,120]
[327900345,1716590797774,-500.0,0.00043835,120]
[327900346,1716590797799,-514.59231937,0.00043835,120]
[327900347,1716590797822,-3000.0,0.00043835,120]
[327900348,1716590797845,-1206.07511805,0.00043836,30]
[327900349,1716590797870,-269.3,0.00043836,30]
[327900350,1716590797894,-1000.0,0.00043849,60]
[327900351,1716590797919,-1000.0,0.00043876,90]
[327900352,1716590797942,-527.75502,0.00043888,30]
[327900353,1716590797965,-3128.81742396,0.000439,120]
[327900354,1716590797990,-5532.52661575,0.000439,30]
[327900355,1716590798012,-1000.0,0.00043931,60]
[327900356,1716590798035,-407.0,0.00043986,120]
[327900357,1716590798063,-50000.0,0.00044,34]
[327900358,1716590798086,-1000.0,0.00044,120]
[327900359,1716590798108,-178.42038969,0.00044,120]
[327900360,1716590798131,-10748.50515107,0.00044,120]
[327900361,1716590798154,-607.84717865,0.00044,30]
[327900362,1716590798177,-2000.0,0.00044,30]
[327900363,1716590798200,-1000.34486548,0.00044,30]
[327900364,1716590798223,-1164.47738957,0.00044,30]
[327900365,1716590798248,-250.0,0.00044,30]
[327900366,1716590798270,-1000.0,0.00044,120]
[327900367,1716590798292,-10105.5450073,0.00044,120]
[327900368,1716590798319,-6157.76944452,0.00044,120]
[327900369,1716590798342,-527.79790482,0.00044,30]
[327900370,1716590798366,-1780.79073171,0.00044,120]
[327900371,1716590798390,-200.0,0.00044,120]
[327900372,1716590798414,-584.106995,0.00044,44]
[327900373,1716590798437,-80866.36808982,0.000441,30]
[327900374,1716590816860,-886.79824869,0.000389,30]
[327900375,1716590816886,-394.3931496,0.0004001,30]
[327900376,1716590816915,-18538.68012129,0.00042,30]
[327900377,1716590816940,-268.716,0.00042908,30]
[327900378,1716590816967,-84109.10573977,0.000441,30]
[327900379,1716590816990,-1000.0,0.00044109,60]
[327900380,1716590817012,-1455.25884964,0.000442,120]
[327900381,1716590817035,-2514.71,0.000442,120]
[327900382,1716590817057,-250.0,0.000443,30]
[327900383,1716590817079,-603.0,0.000443,34]
[327900384,1716590817101,-1000.0,0.00044347,90]
[327900385,1716590817123,-30000.0,0.00044355,30]
[327900386,1716590817145,-1000.0,0.00044383,60]
[327900387,1716590817168,-2551.95,0.000444,120]
[327900388,1716590817190,-2992.17340974,0.000444,120]
[327900389,1716590817212,-1020.0,0.000444,30]
[327900390,1716590817234,-200.22605525,0.000444,60]
[327900391,1716590817257,-501.39489692,0.000445,60]
[327900392,1716590817280,-151.0,0.000445,45]
[327900393,1716590817306,-3000.0,0.00044657,120]
[327900394,1716590817331,-101851.57669424,0.000447,120]
[327900395,1716590817358,-3831.36519924,0.00044798,120]
[327900396,1716590817386,-558412.43052028,0.000448,60]
[327900397,1716590817410,-216.07546139,0.000448,30]
[327900398,1716590817438,-3931.61363733,0.000448,120]
[327900399,1716590817462,-289.04046976,0.000448,120]
[327900400,1716590817487,-765.07622708,0.000448,35]
[327900401,1716590817508,-25724.68032846,0.000448,120]
[327900402,1716590817530,-134789.41417643,0.000448,120]
[327900403,1716590817552,-604.098528,0.000448,34]
[327900404,1716590817574,-275.22623116,0.000449,120]
[327900405,1716590817596,-24937.44008399,0.000449,30]
[327900406,1716590817619,-500.0,0.00044931,120]
[327900407,1716590817640,-175.0,0.00044931,120]
[327900408,1716590817662,-202.99096782,0.0004498,30]
[327900409,1716590817685,-1000.0,0.00044999,120]
[327900410,1716590817709,-50000.0,0.00045,35]
[327900411,1716590817731,-800.79154046,0.00045,30]
[327900412,1716590817754,-151.0,0.00045,120]
[327900413,1716590817775,-417.77168852,0.00045,30]
[327900414,1716590817928,-410.0,0.00045,120]
[327900415,1716590817950,-500.0,0.00045,120]
[327900416,1716590817972,-500.0,0.00045,120]
[327900417,1716590817998,-500.0,0.00045,30]
[327900418,1716590818022,-950.0,0.00045,120]
[327900419,1716590818043,-511.0,0.00045,120]
[327900420,1716590818066,-150.999999,0.00045,120]
[327900421,1716590818088,-3726.0,0.00045,120]
[327900422,1716590818110,-150.0,0.00045,120]
[327900423,1716590818132,-2231.0,0.00045,30]
[327900424,1716590818153,-2000.0,0.00045,30]
[327900425,1716590818176,-2500.0,0.00045,120]
[327900426,1716590818197,-1143.0,0.00045,120]
[327900427,1716590818219,-1143.09285103,0.00045,120]
[327900428,1716590818242,-2130.20909818,0.00045,120]
[327900429,1716590818266,-2031.78712121,0.00045,30]
[327900430,1716590818289,-5184.36440697,0.00045,30]
[327900431,1716590818314,-300.0,0.00045,60]
[327900432,1716590818335,-300.0,0.00045,60]
[327900433,1716590818359,-1085.0,0.00045,120]
[327900434,1716590818382,-21950.0,0.00045,30]
[327900435,1716590818404,-2500.0,0.00045,120]
[327900436,1716590818427,-2500.0,0.00045,120]
[327900437,1716590818448,-2000.0,0.00045,120]
[327900438,1716590818470,-2500.0,0.00045,120]
[327900439,1716590818492,-2500.0,0.00045,120]
[327900440,1716590818517,-2500.0,0.00045,120]
[327900441,1716590818539,-2500.0,0.00045,120]
[327900442,1716590818562,-2500.0,0.00045,120]
[327900443,1716590818584,-2500.0,0.00045,120]
[327900444,1716590818606,-2500.0,0.00045,120]
[327900445,1716590818628,-2500.0,0.00045,120]